fUST/lending_fUST_20260418
["ID","MTS","AMOUNT","RATE_DAILY","PERIOD"]
[420740097,1776521441171,-253.6841363,8.359e-05,2]
[420740098,1776521441180,-1500.0,8.368e-05,2]
[420740099,1776521441195,-1500.0,8.368e-05,2]
[420740100,1776521441204,-897.72830355,8.368e-05,2]
[420740101,1776521441213,-2438.493859,8.396e-05,2]
[420740102,1776521441222,-262.560586,8.407e-05,2]
[420740103,1776521441232,-262.560586,8.407e-05,2]
[420740104,1776521441241,-262.560586,8.407e-05,2]
[420740105,1776521441250,-262.560586,8.407e-05,2]
[420740106,1776521441260,-151.0,8.407e-05,2]
[420740107,1776521441269,-467.13,8.416e-05,2]
[420740108,1776521441279,-399.48865643,8.475e-05,2]
[420740109,1776521441288,-587.0,8.488e-05,2]
[420740110,1776521441298,-166.58333333,8.493e-05,2]
[420740111,1776521441307,-1139.0,8.493e-05,2]
[420740112,1776521441316,-500.0,8.493e-05,2]
[420740113,1776521441325,-622.85,8.524e-05,2]
[420740114,1776521441335,-620.23340165,8.588e-05,2]
[420740115,1776521441344,-548.74,8.589e-05,2]
[420740116,1776521441353,-778.56,8.631e-05,2]
[420740117,1776521441363,-350.18097505,8.738e-05,2]
[420740118,1776521441372,-934.27,8.739e-05,2]
[420740119,1776521441381,-1139.0,8.767e-05,2]
[420740120,1776521441391,-500.0,8.767e-05,2]
[420740121,1776521441400,-166.58333333,8.774e-05,7]
[420740122,1776521441411,-99729.718844,8.82e-05,2]
[420740123,1776521441421,-16079.490182,8.82e-05,2]
[420740124,1776521441431,-29989.865226,8.82e-05,2]
[420740125,1776521441440,-399.48865643,8.82e-05,2]
[420740126,1776521441450,-347331.31327,8.82e-05,2]
[420740127,1776521441459,-1089.98,8.847e-05,2]
[420740128,1776521441468,-231.9513313,8.861e-05,2]
[420740129,1776521441477,-168.0793694,8.861e-05,2]
[420740130,1776521441487,-2398.4119403,8.878e-05,2]
[420740131,1776521441496,-2000.0,8.916e-05,2]
[420740132,1776521441506,-2000.0,8.916e-05,2]
[420740133,1776521441515,-864.0,8.932e-05,2]
[420740134,1776521441524,-1401.44,8.955e-05,2]
[420740135,1776521441534,-512.32646561,8.973e-05,2]
[420740136,1776521441544,-500.0,8.973e-05,2]
[420740137,1776521441553,-508.40262219,8.973e-05,2]
[420740138,1776521441563,-999.33276637,9e-05,2]
[420740139,1776521441572,-1166863.63956326,9e-05,2]
[420740140,1776521441582,-262.560586,9e-05,2]
[420740141,1776521441591,-262.560586,9e-05,2]
[420740142,1776521441600,-262.560586,9e-05,2]
[420740143,1776521441610,-262.560586,9e-05,2]
[420740144,1776521441619,-151.0,9e-05,2]
[420740145,1776521441628,-168.7449807,9.016e-05,2]
[420740146,1776521441638,-500.0,9.041e-05,2]
[420740147,1776521441648,-1139.0,9.041e-05,2]
[420740148,1776521441658,-10000.0,9.123e-05,2]
[420740149,1776521441669,-153.0,9.3e-05,2]
[420740150,1776521441678,-500.0,9.315e-05,2]
[420740151,1776521441687,-1139.0,9.315e-05,2]
[420740152,1776521441697,-823.0,9.336e-05,2]
[420740153,1776521441706,-642.18051039,9.397e-05,2]
[420740154,1776521441718,-151.0,9.4e-05,5]
[420740155,1776521441727,-156.64137042,9.403e-05,2]
[420740156,1776521441736,-822.56929986,9.419e-05,2]
[420740157,1776521441745,-521.92093136,9.425e-05,2]
[420740158,1776521441754,-2487.15318209,9.426e-05,2]
[420740159,1776521441763,-2500.0,9.464e-05,2]
[420740160,1776521441772,-2500.0,9.464e-05,2]
[420740161,1776521441782,-626.56548169,9.495e-05,2]
[420740162,1776521441791,-382.33360244,9.521e-05,2]
[420740163,1776521441801,-674.30494289,9.555e-05,2]
[420740164,1776521441810,-6736.20921997,9.558e-05,2]
[420740165,1776521441820,-1409.7723338,9.588e-05,2]
[420740166,1776521441829,-200.0,9.589e-05,2]
[420740167,1776521441839,-290.87132295,9.589e-05,2]
[420740168,1776521441848,-1139.0,9.589e-05,2]
[420740169,1776521441858,-151.0,9.621e-05,2]
[420740170,1776521441868,-2506.26192675,9.68e-05,2]
[420740171,1776521441880,-2087.68372543,9.753e-05,2]
[420740172,1776521442135,-3916.03426055,9.773e-05,2]
[420740173,1776521442145,-262.560586,9.8e-05,2]
[420740174,1776521442154,-262.560586,9.8e-05,2]
[420740175,1776521442163,-262.560586,9.8e-05,2]
[420740176,1776521442173,-262.56058788,9.8e-05,2]
[420740177,1776521442182,-151.0,9.8e-05,2]
[420740178,1776521442191,-1000.0,9.825e-05,2]
[420740179,1776521442200,-1139.0,9.863e-05,2]
[420740180,1776521442209,-5639.0893352,9.866e-05,2]
[420740181,1776521442218,-110576.128209,9.9e-05,2]
[420740182,1776521442227,-60000.0,9.9e-05,2]
[420740183,1776521442236,-7675.42715068,9.958e-05,2]
[420740184,1776521442245,-446.9921869,9.974e-05,2]
[420740185,1776521442254,-83969.08747352,9.98e-05,2]
[420740186,1776521442264,-457.09927707,9.981e-05,2]
[420740187,1776521442275,-3286.98692224,9.986e-05,2]
[420740188,1776521442285,-621.6526384,9.988e-05,2]
[420740189,1776521442295,-251.34734682,0.0001,2]
[420740190,1776521442305,-49258.82093362,0.0001,2]
[420740191,1776521442316,-1508.1103609,0.0001,2]
[420740192,1776521442326,-1500.0,0.0001,30]
[420740193,1776521442336,-177.15,0.0001,2]
[420740194,1776521442345,-291.76846316,0.0001,2]
[420740195,1776521442355,-2062.0,0.0001,2]
[420740196,1776521442364,-2134.76387398,0.0001,2]
[420740197,1776521442373,-24000.0,0.0001,2]
[420740198,1776521442383,-674.88021625,0.0001,2]
[420740199,1776521442392,-641.14527928,0.0001,10]
[420740201,1776521442402,-1000.0,0.0001,2]
[420740203,1776521442412,-7807.08437789,0.0001,2]
[420740204,1776521442421,-838164.40426646,0.0001,2]
[420740224,1776521442713,500.0,0.00024657,120]
[420740225,1776521442817,500.0,0.00024657,120]
[420740226,1776521442891,500.0,0.00024657,120]
[420740227,1776521442953,500.0,0.00024657,120]
[420740228,1776521443017,590.44583873,0.00024657,120]
[420740230,1776521443368,500.0,0.00024657,120]
[420740231,1776521443421,500.0,0.00024657,120]
[420740232,1776521443469,500.0,0.00024657,120]
[420740233,1776521443531,500.0,0.00024657,120]
[420740234,1776521443583,500.0,0.00024657,120]
[420740235,1776521443640,500.0,0.00024657,120]
[420740236,1776521443690,500.0,0.00024657,120]
[420740237,1776521443752,528.78842677,0.00024657,120]
[420740238,1776521443802,500.0,0.00024657,120]
[420740239,1776521443855,500.0,0.00024657,120]
[420740240,1776521443909,500.0,0.00024657,120]
[420740241,1776521443922,-958.35749623,0.0001,2]
[420740242,1776521444676,173.16378935,0.0002355,120]
[420740243,1776521444732,662.15163586,0.0002355,120]
[420740244,1776521444784,286.55703821,0.0002355,120]
[420740245,1776521444835,322.9839609,0.0002355,120]
[420740246,1776521444896,392.12909402,0.0002355,120]
[420740247,1776521445114,173.16378935,0.0002355,120]
[420740248,1776521445168,662.15163586,0.0002355,120]
[420740249,1776521445218,286.55703821,0.0002355,120]
[420740250,1776521445269,322.9839609,0.0002355,120]
[420740251,1776521445353,392.12909402,0.0002355,120]
[420740252,1776521445465,179.6570679,0.0002355,120]
[420740253,1776521445520,173.16378935,0.0002355,120]
[420740254,1776521445573,322.9839609,0.0002355,120]
[420740255,1776521445626,286.55703821,0.0002355,120]
[420740256,1776521445677,662.15163586,0.0002355,120]
[420740257,1776521445733,392.12909402,0.0002355,120]
[420740258,1776521445783,322.9839609,0.0002355,120]
[420740259,1776521445835,662.15163586,0.0002355,120]
[420740260,1776521445885,286.55703821,0.0002355,120]
[420740261,1776521445938,392.12909402,0.0002355,120]
[420740262,1776521446089,286.55703821,0.0002355,120]
[420740263,1776521446140,322.9839609,0.0002355,120]
[420740264,1776521446193,662.15163586,0.0002355,120]
[420740265,1776521446244,392.12909402,0.0002355,120]
[420740266,1776521446416,392.12909402,0.0002355,120]
[420740267,1776521446472,662.15163586,0.0002355,120]
[420740268,1776521446525,286.55703821,0.0002355,120]
[420740269,1776521446578,322.9839609,0.0002355,120]
[420740270,1776521446635,500.0,0.00024657,120]
[420740271,1776521446885,392.12909402,0.0002355,120]
[420740272,1776521446941,662.15163586,0.0002355,120]
[420740273,1776521446999,322.9839609,0.0002355,120]
[420740274,1776521447054,286.55703821,0.0002355,120]
[420740275,1776521447111,500.0,0.00024657,120]
[420740276,1776521447180,392.12909402,0.0002355,120]
[420740277,1776521447234,662.15163586,0.0002355,120]
[420740278,1776521447286,500.0,0.00024657,120]
[420740279,1776521447344,500.0,0.00024657,120]
[420740280,1776521447396,322.9839609,0.0002355,120]
[420740281,1776521447448,286.55703821,0.0002355,120]
[420740282,1776521447503,500.0,0.00024657,120]
[420740283,1776521447559,392.12909402,0.0002355,120]
[420740286,1776521447617,662.15163586,0.0002355,120]
[420740288,1776521447680,500.0,0.00024657,120]
[420740289,1776521447735,392.12909402,0.0002355,120]
[420740290,1776521447792,662.15163586,0.0002355,120]
[420740291,1776521447851,500.0,0.00024657,120]
[420740292,1776521447985,662.15163586,0.0002355,120]
[420740293,1776521448262,392.12909402,0.0002355,120]
[420740294,1776521448316,662.15163586,0.0002355,120]
[420740295,1776521448572,392.12909402,0.0002355,120]
[420740296,1776521448636,662.15163586,0.0002355,120]
[420740297,1776521448857,500.0,0.00024657,120]
[420740298,1776521448913,662.15163586,0.0002355,120]
[420740299,1776521449095,392.12909402,0.0002355,120]
[420740300,1776521449148,500.0,0.00024657,120]
[420740301,1776521449201,662.15163586,0.0002355,120]
[420740302,1776521449318,500.0,0.00024657,120]
[420740303,1776521449405,392.12909402,0.0002355,120]
[420740304,1776521449748,392.12909402,0.0002355,120]
[420740305,1776521449979,500.0,0.00024657,120]
[420740306,1776521450236,500.0,0.00024657,120]
[420740307,1776521450475,506.03708981,0.00024657,120]
[420740308,1776521455666,580.78966131,0.00024657,120]
[420740309,1776521456273,500.0,0.00024657,120]
[420740310,1776521456505,500.0,0.00024657,120]
[420740311,1776521456754,500.0,0.00024657,120]
[420740312,1776521456985,500.0,0.00024657,120]
[420740313,1776521457222,500.0,0.00024657,120]
[420740314,1776521457493,500.0,0.00024657,120]
[420740315,1776521459478,516.19397055,0.00024657,120]
[420740316,1776521466678,500.0,0.00024657,120]
[420740317,1776521466957,500.0,0.00024657,120]
[420740318,1776521467199,500.0,0.00024657,120]
[420740319,1776521467454,504.3414533,0.00024657,120]
[420740320,1776521468998,500.0,0.00024657,120]
[420740321,1776521469228,500.0,0.00024657,120]
[420740322,1776521469446,500.0,0.00024657,120]
[420740323,1776521469667,500.0,0.00024657,120]
[420740324,1776521469914,500.0,0.00024657,120]
[420740325,1776521470146,500.0,0.00024657,120]
[420740326,1776521470371,500.0,0.00024657,120]
[420740327,1776521470603,500.0,0.00024657,120]
[420740328,1776521470833,500.0,0.00024657,120]
[420740329,1776521471059,500.0,0.00024657,120]
[420740330,1776521471285,500.0,0.00024657,120]
[420740331,1776521471516,318.96,0.00024657,120]
[420740332,1776521471569,500.0,0.00024657,120]
[420740333,1776521471683,500.0,0.00024657,120]
[420740334,1776521471774,233.10488132,0.00024657,120]
[420740335,1776521471943,500.0,0.00024657,120]
[420740336,1776521472049,500.0,0.00024657,120]
[420740337,1776521472151,500.0,0.00024657,120]
[420740338,1776521472202,500.0,0.00024657,120]
[420740339,1776521472374,500.0,0.00024657,120]
[420740340,1776521472426,500.0,0.00024657,120]
[420740341,1776521472606,500.0,0.00024657,120]
[420740342,1776521472660,500.0,0.00024657,120]
[420740343,1776521472829,500.0,0.00024657,120]
[420740344,1776521472885,189.44634799,0.00024657,120]
[420740345,1776521473062,285.36,0.00024657,120]
[420740346,1776521473661,500.0,0.00024657,120]
[420740347,1776521473873,486.30795756,0.00024657,120]
[420740348,1776521476115,513.62093261,0.00024657,120]
[420740349,1776521476619,500.0,0.00024657,120]
[420740350,1776521476846,500.0,0.00024657,120]
[420740351,1776521477133,500.0,0.00024657,120]
[420740352,1776521477360,250.38,0.00024657,120]
[420740353,1776521479376,500.0,0.00024657,120]
[420740354,1776521479617,500.0,0.00024657,120]
[420740355,1776521479845,500.0,0.00024657,120]
[420740356,1776521479918,500.0,0.00024657,120]
[420740357,1776521480073,500.0,0.00024657,120]
[420740358,1776521480140,514.21040514,0.00024657,120]
[420740359,1776521480298,500.0,0.00024657,120]
[420740360,1776521480466,841.11,0.00024657,120]
[420740361,1776521480520,500.0,0.00024657,120]
[420740362,1776521480702,841.11,0.00024657,120]
[420740363,1776521480777,500.0,0.00024657,120]
[420740364,1776521480936,841.11,0.00024657,120]
[420740365,1776521480997,500.0,0.00024657,120]
[420740366,1776521481209,500.0,0.00024657,120]
[420740367,1776521481268,841.11,0.00024657,120]
[420740368,1776521481430,841.11,0.00024657,120]
[420740369,1776521481493,500.0,0.00024657,120]
[420740370,1776521481694,841.11,0.00024657,120]
[420740371,1776521481755,500.0,0.00024657,120]
[420740372,1776521481904,841.11,0.00024657,120]
[420740373,1776521481964,500.0,0.00024657,120]
[420740374,1776521482147,841.11,0.00024657,120]
[420740375,1776521482205,500.0,0.00024657,120]
[420740376,1776521482265,500.0,0.00024657,120]
[420740377,1776521482396,841.11,0.00024657,120]
[420740378,1776521482457,500.0,0.00024657,120]
[420740379,1776521482519,500.0,0.00024657,120]
[420740380,1776521482780,500.0,0.00024657,120]
[420740381,1776521482864,500.0,0.00024657,120]
[420740382,1776521482935,500.0,0.00024657,120]
[420740383,1776521483010,500.0,0.00024657,120]
[420740384,1776521483069,500.0,0.00024657,120]
[420740385,1776521483149,265.68,0.00024657,120]
[420740386,1776521483242,500.0,0.00024657,120]
[420740387,1776521483427,841.11,0.00024657,120]
[420740388,1776521483487,346.22935695,0.00024657,120]
[420740389,1776521484079,500.0,0.00024657,120]
[420740390,1776521484183,841.11,0.00024657,120]
[420740391,1776521484247,500.0,0.00024657,120]
[420740392,1776521484315,500.0,0.00024657,120]
[420740393,1776521484372,841.11,0.00024657,120]
[420740394,1776521484427,500.0,0.00024657,120]
[420740395,1776521484481,500.0,0.00024657,120]
[420740396,1776521484540,841.11,0.00024657,120]
[420740397,1776521484594,630.1,0.00024657,120]
[420740398,1776521484657,841.11,0.00024657,120]
[420740399,1776521484983,841.11,0.00024657,120]
[420740400,1776521485204,841.11,0.00024657,120]
[420740401,1776521485427,841.11,0.00024657,120]
[420740402,1776521485659,841.11,0.00024657,120]
[420740403,1776521485882,841.11,0.00024657,120]
[420740404,1776521486095,841.11,0.00024657,120]
[420740405,1776521486453,841.11,0.00024657,120]
[420740406,1776521486646,500.0,0.00024657,120]
[420740407,1776521486707,841.11,0.00024657,120]
[420740408,1776521486867,500.0,0.00024657,120]
[420740409,1776521486921,841.11,0.00024657,120]
[420740410,1776521487094,500.0,0.00024657,120]
[420740411,1776521487174,841.17,0.00024657,120]
[420740412,1776521487318,500.0,0.00024657,120]
[420740413,1776521487580,234.79536524,0.00024657,120]
[420740414,1776521487709,500.0,0.00024657,120]
[420740415,1776521487943,500.0,0.00024657,120]
[420740416,1776521488185,500.0,0.00024657,120]
[420740417,1776521488413,500.0,0.00024657,120]
[420740418,1776521488649,500.0,0.00024657,120]
[420740419,1776521488878,500.0,0.00024657,120]
[420740420,1776521489126,622.46,0.00024657,120]
[420740421,1776521489177,500.0,0.00024657,120]
[420740422,1776521489352,622.46,0.00024657,120]
[420740423,1776521489404,500.0,0.00024657,120]
[420740424,1776521489589,622.46,0.00024657,120]
[420740425,1776521489649,500.0,0.00024657,120]
[420740426,1776521489762,500.0,0.00024657,120]
[420740427,1776521489825,622.46,0.00024657,120]
[420740428,1776521489877,500.0,0.00024657,120]
[420740429,1776521489991,500.0,0.00024657,120]
[420740430,1776521490055,622.46,0.00024657,120]
[420740431,1776521490335,500.0,0.00024657,120]
[420740432,1776521490391,500.0,0.00024657,120]
[420740433,1776521490456,622.46,0.00024657,120]
[420740434,1776521490530,500.0,0.00024657,120]
[420740435,1776521490585,500.0,0.00024657,120]
[420740436,1776521490663,183.43621665,0.00024657,120]
[420740437,1776521490725,622.46,0.00024657,120]
[420740438,1776521490776,500.0,0.00024657,120]
[420740439,1776521490925,622.46,0.00024657,120]
[420740440,1776521490977,500.0,0.00024657,120]
[420740441,1776521491139,622.46,0.00024657,120]
[420740442,1776521491188,500.0,0.00024657,120]
[420740443,1776521491394,622.46,0.00024657,120]
[420740444,1776521491447,500.0,0.00024657,120]
[420740445,1776521491630,622.46,0.00024657,120]
[420740446,1776521491683,619.12,0.00024657,120]
[420740447,1776521491903,622.46,0.00024657,120]
[420740448,1776521491976,810.37,0.00024657,120]
[420740449,1776521492219,810.37,0.00024657,120]
[420740450,1776521492403,622.46,0.00024657,120]
[420740451,1776521492454,500.0,0.00024657,120]
[420740452,1776521492507,810.37,0.00024657,120]
[420740453,1776521492651,622.46,0.00024657,120]
[420740454,1776521492702,500.0,0.00024657,120]
[420740455,1776521492757,810.37,0.00024657,120]
[420740456,1776521492894,622.46,0.00024657,120]
[420740457,1776521492944,500.0,0.00024657,120]
[420740458,1776521492997,810.37,0.00024657,120]
[420740459,1776521493130,622.46,0.00024657,120]
[420740460,1776521493182,222.54,0.00024657,120]
[420740461,1776521493232,810.37,0.00024657,120]
[420740462,1776521493374,622.46,0.00024657,120]
[420740463,1776521493598,622.46,0.00024657,120]
[420740464,1776521493880,622.46,0.00024657,120]
[420740465,1776521494006,810.37,0.00024657,120]
[420740466,1776521494261,622.46,0.00024657,120]
[420740467,1776521494325,810.37,0.00024657,120]
[420740468,1776521494386,622.46,0.00024657,120]
[420740469,1776521494501,810.37,0.00024657,120]
[420740470,1776521494637,622.46,0.00024657,120]
[420740471,1776521494691,221.62733626,0.0002355,120]
[420740472,1776521494824,622.46,0.00024657,120]
[420740473,1776521494896,810.37,0.00024657,120]
[420740474,1776521495051,622.54,0.00024657,120]
[420740475,1776521495409,810.37,0.00024657,120]
[420740476,1776521495641,810.37,0.00024657,120]
[420740477,1776521495879,810.37,0.00024657,120]
[420740478,1776521496140,810.37,0.00024657,120]
[420740479,1776521496373,810.37,0.00024657,120]
[420740480,1776521496596,810.37,0.00024657,120]
[420740481,1776521496661,500.0,0.00024657,120]
[420740482,1776521496832,500.0,0.00024657,120]
[420740483,1776521497106,810.37,0.00024657,120]
[420740484,1776521497158,500.0,0.00024657,120]
[420740485,1776521497222,500.0,0.00024657,120]
[420740486,1776521497290,810.37,0.00024657,120]
[420740487,1776521497351,500.0,0.00024657,120]
[420740488,1776521497407,228.9,0.00024657,120]
[420740489,1776521497458,810.37,0.00024657,120]
[420740490,1776521497520,500.0,0.00024657,120]
[420740491,1776521497647,810.37,0.00024657,120]
[420740492,1776521497705,500.0,0.00024657,120]
[420740493,1776521497887,810.37,0.00024657,120]
[420740494,1776521497943,427.24833733,0.00024657,120]
[420740495,1776521498124,810.37,0.00024657,120]
[420740496,1776521498370,810.37,0.00024657,120]
[420740497,1776521498597,810.55,0.00024657,120]
[420740498,1776521500620,525.18018293,0.00024657,120]
[420740499,1776521502562,500.0,0.00024657,120]
[420740500,1776521502798,500.0,0.00024657,120]
[420740501,1776521503036,500.0,0.00024657,120]
[420740502,1776521503325,500.0,0.00024657,120]
[420740503,1776521503606,500.0,0.00024657,120]
[420740504,1776521503836,500.0,0.00024657,120]
[420740505,1776521504087,500.0,0.00024657,120]
[420740506,1776521504195,500.0,0.00024657,120]
[420740507,1776521504474,500.0,0.00024657,120]
[420740508,1776521504527,500.0,0.00024657,120]
[420740509,1776521504652,500.0,0.00024657,120]
[420740510,1776521504708,500.0,0.00024657,120]
[420740511,1776521504807,500.0,0.00024657,120]
[420740512,1776521504906,527.49322521,0.00024657,120]
[420740513,1776521505324,500.0,0.00024657,120]
[420740514,1776521505561,500.0,0.00024657,120]
[420740515,1776521505783,500.0,0.00024657,120]
[420740516,1776521506003,500.0,0.00024657,120]
[420740517,1776521506233,500.0,0.00024657,120]
[420740518,1776521506501,552.11498629,0.00024657,120]
[420740519,1776521508639,500.0,0.00024657,120]
[420740520,1776521508867,500.0,0.00024657,120]
[420740521,1776521508918,500.0,0.00024657,120]
[420740522,1776521509092,356.23616162,0.00024657,120]
[420740523,1776521509142,500.0,0.00024657,120]
[420740524,1776521509351,500.0,0.00024657,120]
[420740525,1776521509595,500.0,0.00024657,120]
[420740526,1776521509984,500.0,0.00024657,120]
[420740527,1776521510041,500.0,0.00024657,120]
[420740528,1776521510097,500.0,0.00024657,120]
[420740529,1776521510149,500.0,0.00024657,120]
[420740530,1776521510259,500.0,0.00024657,120]
[420740531,1776521510310,592.3332779,0.00024657,120]
[420740532,1776521510488,500.0,0.00024657,120]
[420740533,1776521510721,593.33,0.00024657,120]
[420740534,1776521511158,500.0,0.00024657,120]
[420740535,1776521511378,500.0,0.00024657,120]
[420740536,1776521511613,500.0,0.00024657,120]
[420740537,1776521511789,316.83313381,0.00024657,120]
[420740538,1776521511840,500.0,0.00024657,120]
[420740539,1776521512062,500.0,0.00024657,120]
[420740540,1776521512298,558.68,0.00024657,120]
[420740541,1776521512356,500.0,0.00024657,120]
[420740542,1776521512564,500.0,0.00024657,120]
[420740543,1776521512792,500.0,0.00024657,120]
[420740544,1776521513026,500.0,0.00024657,120]
[420740545,1776521513407,500.0,0.00024657,120]
[420740546,1776521513638,500.0,0.00024657,120]
[420740547,1776521513911,500.0,0.00024657,120]
[420740548,1776521514023,500.0,0.00024657,120]
[420740549,1776521514132,500.0,0.00024657,120]
[420740550,1776521514252,500.0,0.00024657,120]
[420740551,1776521514302,500.0,0.00024657,120]
[420740552,1776521514359,500.0,0.00024657,120]
[420740553,1776521514700,500.0,0.00024657,120]
[420740554,1776521514754,500.0,0.00024657,120]
[420740555,1776521514806,500.0,0.00024657,120]
[420740556,1776521514861,341.64145828,0.00024657,120]
[420740557,1776521514913,500.0,0.00024657,120]
[420740558,1776521514964,500.0,0.00024657,120]
[420740559,1776521515012,500.0,0.00024657,120]
[420740560,1776521515071,500.0,0.00024657,120]
[420740561,1776521515125,500.0,0.00024657,120]
[420740562,1776521515182,359.35,0.00024657,120]
[420740563,1776521515231,241.99821672,0.00024657,120]
[420740564,1776521515282,500.0,0.00024657,120]
[420740565,1776521515441,166.95972338,0.00024657,120]
[420740566,1776521515532,500.0,0.00024657,120]
[420740567,1776521515781,550.29584241,0.00024657,120]
[420740568,1776521516806,500.0,0.00024657,120]
[420740569,1776521517020,500.0,0.00024657,120]
[420740570,1776521517249,500.0,0.00024657,120]
[420740571,1776521517470,500.0,0.00024657,120]
[420740572,1776521517700,500.0,0.00024657,120]
[420740573,1776521517927,500.0,0.00024657,120]
[420740574,1776521518157,500.0,0.00024657,120]
[420740575,1776521518431,500.0,0.00024657,120]
[420740576,1776521518661,178.89107821,0.00024657,120]
[420740577,1776521518711,500.0,0.00024657,120]
[420740578,1776521518901,436.82,0.00024657,120]
[420740579,1776521520548,787.47,0.00024657,120]
[420740580,1776521520873,787.47,0.00024657,120]
[420740581,1776521521100,787.47,0.00024657,120]
[420740582,1776521521601,787.47,0.00024657,120]
[420740583,1776521521706,787.47,0.00024657,120]
[420740584,1776521521876,500.0,0.00024657,120]
[420740585,1776521521939,787.47,0.00024657,120]
[420740586,1776521522104,500.0,0.00024657,120]
[420740587,1776521522162,787.47,0.00024657,120]
[420740588,1776521522336,500.0,0.00024657,120]
[420740589,1776521522471,787.47,0.00024657,120]
[420740590,1776521522573,500.0,0.00024657,120]
[420740591,1776521522710,787.47,0.00024657,120]
[420740592,1776521522819,500.0,0.00024657,120]
[420740593,1776521522936,787.47,0.00024657,120]
[420740594,1776521522991,500.0,0.00024657,120]
[420740595,1776521523058,500.0,0.00024657,120]
[420740596,1776521523216,500.0,0.00024657,120]
[420740597,1776521523264,787.47,0.00024657,120]
[420740598,1776521523448,500.0,0.00024657,120]
[420740599,1776521523497,787.47,0.00024657,120]
[420740600,1776521523687,523.60814309,0.00024657,120]
[420740601,1776521523741,787.47,0.00024657,120]
[420740602,1776521523958,787.47,0.00024657,120]
[420740603,1776521524186,787.47,0.00024657,120]
[420740604,1776521524418,787.47,0.00024657,120]
[420740605,1776521524653,787.47,0.00024657,120]
[420740606,1776521524932,787.47,0.00024657,120]
[420740607,1776521525128,787.47,0.00024657,120]
[420740608,1776521525372,787.47,0.00024657,120]
[420740609,1776521525623,787.47,0.00024657,120]
[420740610,1776521525883,787.47,0.00024657,120]
[420740611,1776521526111,787.47,0.00024657,120]
[420740612,1776521526339,787.63,0.00024657,120]
[420740613,1776521526392,500.0,0.00024657,120]
[420740614,1776521526602,500.0,0.00024657,120]
[420740615,1776521526756,500.0,0.00024657,120]
[420740616,1776521526811,500.0,0.00024657,120]
[420740617,1776521526871,500.0,0.00024657,120]
[420740618,1776521527011,500.0,0.00024657,120]
[420740619,1776521527059,500.0,0.00024657,120]
[420740620,1776521527110,500.0,0.00024657,120]
[420740621,1776521527168,468.10175604,0.00024657,120]